fUST/lending_fUST_20240415
["ID","MTS","AMOUNT","RATE_DAILY","PERIOD"]
[322649762,1713174633251,-174.0,0.00028767,2]
[322649763,1713174633260,-259.61843384,0.00028998,2]
[322649764,1713174633271,-194.55206787,0.00028998,2]
[322649765,1713174633284,-718.71759762,0.00028998,2]
[322649767,1713174633293,-157.62398108,0.00028998,2]
[322649768,1713174633303,-207.19645983,0.00028998,2]
[322649769,1713174633313,-1890.82308634,0.00028998,2]
[322649770,1713174633322,-180.01389461,0.00028998,2]
[322649771,1713174633332,-155.93416672,0.00028998,2]
[322649772,1713174633343,-1007.41334148,0.00028998,2]
[322649773,1713174633352,-156.6719202,0.00028998,2]
[322649774,1713174633361,-155.38089012,0.00028998,2]
[322649775,1713174633370,-154.75239617,0.00028998,2]
[322649776,1713174633379,-302.37855448,0.00028998,2]
[322649777,1713174633389,-203.0807899,0.00028998,2]
[322649778,1713174633399,-264.85045702,0.00028998,2]
[322649779,1713174633408,-155.67936747,0.00028998,2]
[322649780,1713174633417,-543.37010134,0.00028998,2]
[322649781,1713174633427,-155.6894373,0.00028998,2]
[322649782,1713174633436,-207.61628382,0.00028998,2]
[322649783,1713174633445,-3782.54182539,0.00028999,2]
[322649784,1713174633454,-1661.93121422,0.00028999,2]
[322649785,1713174633465,-100820.90865829,0.00029,2]
[322649786,1713174633475,-151.0,0.00029,2]
[322649787,1713174633485,-167.377271,0.00029,2]
[322649788,1713174633494,-151.0,0.00029,2]
[322649789,1713174633503,-151.0,0.00029,2]
[322649790,1713174633513,-774.153459,0.00029,2]
[322649791,1713174633523,-774.153459,0.00029,2]
[322649792,1713174633532,-151.0,0.00029,2]
[322649793,1713174633542,-590.638728,0.00029,2]
[322649794,1713174633552,-590.638728,0.00029,2]
[322649795,1713174633562,-151.0,0.00029,2]
[322649796,1713174633571,-906.97196786,0.00029037,2]
[322649797,1713174633581,-703.15036444,0.00029047,2]
[322649798,1713174633590,-166.666666,0.00029321,2]
[322649799,1713174633600,-431.2166081,0.00029578,2]
[322649800,1713174633609,-157.79384794,0.00029699,2]
[322649801,1713174633618,-166.666666,0.00029962,2]
[322649802,1713174633628,-185.83605706,0.00029997,2]
[322649803,1713174633639,-155.1306822,0.00029997,2]
[322649804,1713174633650,-41692.21840505,0.0003,3]
[322649805,1713174633660,-1612.84975599,0.0003,4]
[322649806,1713174633670,-383.35037389,0.0003,2]
[322649807,1713174633680,-4814.75091291,0.0003,3]
[322649849,1713174638525,-716.43788435,0.000289,2]
[322649850,1713174638534,-151.0,0.00029,2]
[322649851,1713174638543,-157.79384794,0.00029699,2]
[322649852,1713174638552,-2915.95253585,0.00029999,2]
[322649853,1713174638561,-9474.28154214,0.0003,3]
[322649854,1713174638571,-154.82968734,0.0003,4]
[322649855,1713174638580,-199.999999,0.0003,2]
[322649856,1713174638590,-277.49835565,0.0003,2]
[322649857,1713174638600,-304.23825315,0.0003,2]
[322649858,1713174638609,-1060.573685,0.0003,2]
[322649859,1713174638618,-1060.573685,0.0003,2]
[322649860,1713174638628,-151.0,0.0003,2]
[322649861,1713174638637,-2402.040784,0.0003,2]
[322649862,1713174638752,-2402.040784,0.0003,2]
[322649863,1713174638765,-242.707001,0.0003,2]
[322649864,1713174638775,-242.707001,0.0003,2]
[322649865,1713174638784,-151.0,0.0003,2]
[322649866,1713174638794,-153.146144,0.0003,2]
[322649867,1713174638803,-151.0,0.0003,2]
[322649868,1713174638813,-151.0,0.0003,2]
[322649869,1713174638822,-774.153459,0.0003,2]
[322649870,1713174638831,-774.153459,0.0003,2]
[322649871,1713174638840,-153.250409,0.0003,2]
[322649872,1713174638850,-590.638728,0.0003,2]
[322649873,1713174638859,-590.638728,0.0003,2]
[322649874,1713174638869,-430.0,0.0003,2]
[322649875,1713174638879,-151.0,0.0003,2]
[322649876,1713174638888,-151.0,0.0003,2]
[322649877,1713174638897,-823.0,0.00030018,2]
[322649878,1713174638907,-500.0,0.00030136,2]
[322649879,1713174638916,-500.0,0.00030191,2]
[322649880,1713174638925,-176.0,0.00030205,2]
[322649881,1713174638934,-500.0,0.00030246,2]
[322649882,1713174638944,-500.0,0.00030301,2]
[322649883,1713174638953,-500.0,0.00030356,2]
[322649884,1713174638962,-500.0,0.0003041,2]
[322649885,1713174638974,-500.0,0.00030465,2]
[322649886,1713174638984,-500.0,0.0003052,2]
[322649887,1713174638993,-500.0,0.00030575,2]
[322649888,1713174639002,-166.666666,0.00030603,2]
[322649889,1713174639012,-500.0,0.0003063,2]
[322649890,1713174639022,-500.0,0.00030684,2]
[322649891,1713174639031,-500.0,0.00030739,2]
[322649892,1713174639040,-472.75762722,0.00030742,5]
[322649893,1713174639050,-500.0,0.00030794,2]
[322649894,1713174639059,-500.0,0.00030849,2]
[322649895,1713174639068,-500.0,0.00030904,2]
[322649896,1713174639078,-500.0,0.00030958,2]
[322649897,1713174639087,-500.0,0.00030999,2]
[322649898,1713174639096,-500.0,0.00030999,2]
[322649899,1713174639106,-432.1907132,0.00030999,2]
[322649900,1713174639115,-5.91281658,0.00030999,2]
[322649910,1713174640321,-494.08718342,0.00030999,2]
[322649911,1713174640332,-500.0,0.00030999,2]
[322649912,1713174640342,-133.67405284,0.00030999,2]
[322649913,1713174640354,-366.32594716,0.00030999,2]
[322649914,1713174640363,-500.0,0.00030999,2]
[322649915,1713174640372,-500.0,0.00030999,2]
[322649916,1713174640382,-500.0,0.00030999,2]
[322649917,1713174640392,-500.0,0.00030999,2]
[322649918,1713174640401,-500.0,0.00030999,2]
[322649919,1713174640411,-266.59597019,0.00030999,2]
[322649920,1713174640420,-584.4475308,0.00030999,2]
[322649921,1713174640430,-602.18083212,0.00030999,2]
[322649922,1713174640439,-500.0,0.00030999,2]
[322649923,1713174640448,-500.0,0.00030999,2]
[322649924,1713174640458,-500.0,0.00030999,2]
[322649925,1713174640467,-500.0,0.00030999,2]
[322649926,1713174640478,-500.0,0.00030999,2]
[322649927,1713174640487,-500.0,0.00030999,2]
[322649928,1713174640497,-500.0,0.00030999,2]
[322649929,1713174640506,-500.0,0.00030999,2]
[322649930,1713174640516,-500.0,0.00030999,2]
[322649931,1713174640525,-468.69188691,0.00030999,2]
[322649932,1713174640535,-500.0,0.00030999,2]
[322649933,1713174640545,-500.0,0.00030999,2]
[322649934,1713174640555,-500.0,0.00030999,2]
[322649935,1713174640564,-500.0,0.00030999,2]
[322649936,1713174640573,-500.0,0.00030999,2]
[322649937,1713174640583,-500.0,0.00030999,2]
[322649938,1713174640593,-500.0,0.00030999,2]
[322649939,1713174640603,-500.0,0.00030999,2]
[322649940,1713174640613,-500.0,0.00030999,2]
[322649941,1713174640623,-500.0,0.00030999,2]
[322649942,1713174640633,-500.0,0.00030999,2]
[322649943,1713174640643,-500.0,0.00030999,2]
[322649944,1713174640652,-500.0,0.00030999,2]
[322649945,1713174640662,-500.0,0.00030999,2]
[322649946,1713174640672,-500.0,0.00030999,2]
[322649947,1713174640681,-500.0,0.00030999,2]
[322649948,1713174640696,-500.0,0.00030999,2]
[322649949,1713174640710,-500.0,0.00030999,2]
[322649950,1713174640723,-500.0,0.00030999,2]
[322649951,1713174640734,-500.0,0.00030999,2]
[322649952,1713174640746,-500.0,0.00030999,2]
[322649953,1713174640760,-500.0,0.00030999,2]
[322649954,1713174640772,-500.0,0.00030999,2]
[322649955,1713174640786,-467.24705892,0.00030999,2]
[322649956,1713174640799,-500.0,0.00030999,2]
[322649957,1713174640812,-500.0,0.00030999,2]
[322649958,1713174640823,-500.0,0.00030999,2]
[322649959,1713174640836,-500.0,0.00030999,2]
[322649960,1713174640849,-500.0,0.00030999,2]
[322649961,1713174640861,-500.0,0.00030999,2]
[322649962,1713174640874,-500.0,0.00030999,2]
[322649963,1713174640886,-500.0,0.00030999,2]
[322649964,1713174640900,-500.0,0.00030999,2]
[322649965,1713174640912,-313.29289719,0.00030999,2]
[322649966,1713174640922,-282576.84324119,0.00031,5]
[322649967,1713174640936,-10625.72892433,0.00031,5]
[322649968,1713174640948,-151.0,0.00031,2]
[322649969,1713174640961,-245.047122,0.00031,2]
[322649970,1713174640974,-151.0,0.00031,2]
[322649971,1713174640986,-774.153459,0.00031,2]
[322649972,1713174640999,-774.153459,0.00031,2]
[322649973,1713174641011,-590.638728,0.00031,2]
[322649974,1713174641026,-590.638728,0.00031,2]
[322649975,1713174641040,-151.0,0.00031,2]
[322649976,1713174641054,-188.0,0.00031,2]
[322649977,1713174641066,-178.25969618,0.00031013,2]
[322649978,1713174641077,-906.97196786,0.00031168,2]
[322649979,1713174641087,-823.0,0.00031281,2]
[322649980,1713174641099,-621.08527463,0.00031296,2]
[322649981,1713174641111,-151.0,0.000319,2]
[322649982,1713174641123,-9558.22389449,0.00031998,7]
[322649983,1713174641134,-1060.573685,0.00031998,2]
[322649984,1713174641147,-1060.573685,0.00031998,2]
[322649986,1713174641158,-151.0,0.00031998,2]
[322649987,1713174641169,-2402.040784,0.00031998,2]
[322649988,1713174641179,-2402.040784,0.00031998,2]
[322649989,1713174641190,-242.707001,0.00031998,2]
[322649990,1713174641202,-242.707001,0.00031998,2]
[322649991,1713174641218,-1000.0,0.00031998,2]
[322649992,1713174641230,-678.23247813,0.00032,2]
[322649993,1713174641241,-199.06889374,0.00032,4]
[322649994,1713174641253,-1152.0,0.0003257,2]
[322649995,1713174641265,-620.05426373,0.00032861,2]
[322649996,1713174641277,-309.287722,0.00032877,2]
[322649997,1713174641289,-309.287722,0.00032877,2]
[322649998,1713174641300,-309.287722,0.00032877,2]
[322649999,1713174641312,-309.287722,0.00032877,2]
[322650000,1713174641323,-721.900485,0.000329,2]
[322650001,1713174641335,-1200.0,0.00033,4]
[322650002,1713174641346,-243.394686,0.00033165,2]
[322650003,1713174641357,-353.82077,0.00033165,2]
[322650004,1713174641368,-174.0,0.00033226,2]
[322650005,1713174641379,-906.97196786,0.000333,2]
[322650006,1713174641390,-10108.66,0.00033316,2]
[322650007,1713174641401,-10108.66,0.00033316,2]
[322650008,1713174641413,-10108.66,0.00033316,2]
[322650009,1713174641424,-10108.66,0.00033316,2]
[322650010,1713174641435,-774.153459,0.00033321,2]
[322650011,1713174641447,-774.153459,0.00033321,2]
[322650012,1713174641459,-774.153459,0.00033321,2]
[322650013,1713174641473,-774.153459,0.00033321,2]
[322650014,1713174641486,-590.638728,0.00033321,2]
[322650015,1713174641497,-590.638728,0.00033321,2]
[322650016,1713174641508,-590.638728,0.00033321,2]
[322650017,1713174641520,-590.638728,0.00033321,2]
[322650018,1713174641531,-151.0,0.00033321,2]
[322650019,1713174641542,-151.0,0.00033321,2]
[322650020,1713174641554,-151.0,0.00033326,2]
[322650023,1713174641565,-151.0,0.00033326,2]
[322650025,1713174641576,-151.0,0.0003333,2]
[322650026,1713174641587,-151.0,0.0003333,2]
[322650029,1713174641599,-192.496119,0.00033331,2]
[322650031,1713174641610,-151.0,0.00033331,2]
[322650034,1713174641621,-151.0,0.00033331,2]
[322650037,1713174641633,-151.826602,0.00033331,2]
[322650038,1713174641645,-151.0,0.00033331,2]
[322650039,1713174641656,-151.0,0.00033331,2]
[322650040,1713174641667,-151.0,0.00033331,2]
[322650041,1713174641678,-1060.573685,0.00033331,2]
[322650042,1713174641689,-1060.573685,0.00033331,2]
[322650043,1713174641701,-1060.573685,0.00033331,2]
[322650044,1713174641712,-1060.573685,0.00033331,2]
[322650045,1713174641726,-1060.573685,0.00033331,2]
[322650046,1713174641738,-1060.573685,0.00033331,2]
[322650047,1713174641749,-151.0,0.00033331,2]
[322650048,1713174641760,-151.0,0.00033331,2]
[322650049,1713174641771,-151.0,0.00033331,2]
[322650050,1713174641783,-2402.040784,0.00033331,2]
[322650051,1713174641795,-2402.040784,0.00033331,2]
[322650052,1713174641806,-2402.040784,0.00033331,2]
[322650053,1713174641818,-2402.040784,0.00033331,2]
[322650054,1713174641829,-2402.040784,0.00033331,2]
[322650055,1713174641839,-2402.040784,0.00033331,2]
[322650056,1713174641848,-242.707001,0.00033331,2]
[322650057,1713174641858,-242.707001,0.00033331,2]
[322650058,1713174641868,-242.707001,0.00033331,2]
[322650059,1713174641877,-242.707001,0.00033331,2]
[322650060,1713174641887,-242.707001,0.00033331,2]
[322650061,1713174641896,-242.707001,0.00033331,2]
[322650062,1713174641906,-309.287722,0.00033331,2]
[322650063,1713174641915,-309.287722,0.00033331,2]
[322650064,1713174641925,-309.287722,0.00033331,2]
[322650065,1713174641935,-309.287722,0.00033331,2]
[322650066,1713174642125,-309.287722,0.00033331,2]
[322650067,1713174642141,-309.287722,0.00033331,2]
[322650068,1713174642150,-185.965977,0.00033331,2]
[322650069,1713174642159,-151.0,0.00033331,2]
[322650070,1713174642169,-151.0,0.00033331,2]
[322650071,1713174642178,-774.153459,0.00033331,2]
[322650072,1713174642188,-774.153459,0.00033331,2]
[322650073,1713174642198,-590.638728,0.00033331,2]
[322650074,1713174642216,-590.638728,0.00033331,2]
[322650075,1713174642227,-151.0,0.00033331,2]
[322650076,1713174642236,-151.177282,0.00033332,2]
[322650077,1713174642245,-151.0,0.00033332,2]
[322650078,1713174642255,-151.0,0.00033332,2]
[322650079,1713174642264,-151.0,0.00033332,2]
[322650080,1713174642274,-151.0,0.00033332,2]
[322650081,1713174642283,-151.0,0.00033332,2]
[322650082,1713174642293,-151.0,0.00033332,2]
[322650083,1713174642302,-151.0,0.00033332,2]
[322650084,1713174642311,-151.0,0.00033332,2]
[322650085,1713174642320,-191.570403,0.00033332,2]
[322650086,1713174642329,-151.0,0.00033332,2]
[322650087,1713174642339,-151.0,0.00033332,2]
[322650088,1713174642348,-151.0,0.00033332,2]
[322650089,1713174642357,-151.0,0.00033332,2]
[322650090,1713174642368,-151.0,0.00033332,2]
[322650091,1713174642378,-151.0,0.00033332,2]
[322650092,1713174642388,-151.0,0.00033332,2]
[322650093,1713174642398,-151.0,0.00033332,2]
[322650094,1713174642407,-151.0,0.00033332,2]
[322650095,1713174642416,-151.0,0.00033332,2]
[322650096,1713174642426,-151.0,0.00033332,2]
[322650097,1713174642435,-151.0,0.00033332,2]
[322650098,1713174642444,-204.671176,0.00033332,2]
[322650099,1713174642453,-1060.573685,0.00033332,2]
[322650100,1713174642463,-1060.573685,0.00033332,2]
[322650101,1713174642473,-151.0,0.00033332,2]
[322650102,1713174642481,-2402.040784,0.00033332,2]
[322650103,1713174642490,-2402.040784,0.00033332,2]
[322650104,1713174642499,-242.707001,0.00033332,2]
[322650105,1713174642509,-242.707001,0.00033332,2]
[322650106,1713174642518,-309.287722,0.00033332,2]
[322650107,1713174642527,-309.287722,0.00033332,2]
[322650108,1713174642537,-774.153459,0.00033332,2]
[322650109,1713174642546,-774.153459,0.00033332,2]
[322650110,1713174642555,-590.638728,0.00033332,2]
[322650111,1713174642564,-590.638728,0.00033332,2]
[322650112,1713174642573,-151.0,0.00033332,2]
[322650113,1713174642582,-160.0,0.00033332,10]
[322650114,1713174642591,-185.0784515,0.00033332,10]
[322650115,1713174642600,-151.0,0.00033333,2]
[322650116,1713174642610,-151.0,0.00033333,2]
[322650117,1713174642619,-151.0,0.00033333,2]
[322650118,1713174642628,-151.0,0.00033333,2]
[322650119,1713174642637,-151.0,0.00033333,2]
[322650120,1713174642647,-212.476308,0.00033333,2]
[322650121,1713174642656,-151.0,0.00033333,2]
[322650122,1713174642665,-1060.573685,0.00033333,2]
[322650123,1713174642674,-1060.573685,0.00033333,2]
[322650124,1713174642683,-1060.573685,0.00033333,2]
[322650125,1713174642693,-1060.573685,0.00033333,2]
[322650126,1713174642702,-151.0,0.00033333,2]
[322650127,1713174642711,-151.0,0.00033333,2]
[322650128,1713174642722,-2402.040784,0.00033333,2]
[322650129,1713174642732,-2402.040784,0.00033333,2]
[322650130,1713174642741,-2402.040784,0.00033333,2]
[322650131,1713174642750,-2402.040784,0.00033333,2]
[322650132,1713174642759,-242.707001,0.00033333,2]
[322650133,1713174642768,-242.707001,0.00033333,2]
[322650135,1713174642777,-242.707001,0.00033333,2]
[322650137,1713174642786,-242.707001,0.00033333,2]
[322650139,1713174642796,-309.287722,0.00033333,2]
[322650140,1713174642805,-309.287722,0.00033333,2]
[322650142,1713174642813,-309.287722,0.00033333,2]
[322650144,1713174642822,-309.287722,0.00033333,2]
[322650146,1713174642832,-151.0,0.00033333,2]
[322650148,1713174642842,-151.0,0.00033333,2]
[322650150,1713174642851,-774.153459,0.00033333,2]
[322650152,1713174642861,-774.153459,0.00033333,2]
[322650154,1713174642870,-590.638728,0.00033333,2]
[322650156,1713174642883,-590.638728,0.00033333,2]
[322650158,1713174642893,-151.0,0.00033333,2]
[322650160,1713174642903,-855848.19700007,0.00033333,7]
[322650162,1713174642913,-10000.0,0.000335,10]
[322650164,1713174642923,-472.75762722,0.00033578,6]
[322650166,1713174642933,-157.836614,0.00033844,2]
[322650168,1713174642943,-465.39337493,0.00034,4]
[322650170,1713174642953,-703.15036444,0.00034047,2]
[322650172,1713174642963,-1152.0,0.00034409,2]
[322650174,1713174642974,-620.00271319,0.00034504,2]
[322650177,1713174642983,-6869.95989293,0.00035,4]
[322650179,1713174642992,-154.70605849,0.00035,4]
[322650181,1713174643001,-596.8187497,0.00035,2]
[322650183,1713174643011,-654.063148,0.00035,2]
[322650184,1713174643020,-151.0,0.00035,2]
[322650186,1713174643029,-151.0,0.00035,2]
[322650190,1713174643039,-151.0,0.00035,2]
[322650192,1713174643048,-151.0,0.00035,2]
[322650194,1713174643057,-246.629288,0.00035,2]
[322650196,1713174643066,-151.0,0.00035,2]
[322650198,1713174643075,-9243.67961149,0.00035,30]
[322650199,1713174643084,-436.0,0.00035,30]
[322650200,1713174643094,-1060.573685,0.00035,2]
[322650201,1713174643104,-1060.573685,0.00035,2]
[322650203,1713174643113,-151.0,0.00035,2]
[322650204,1713174643122,-2402.040784,0.00035,2]
[322650205,1713174643131,-2402.040784,0.00035,2]
[322650207,1713174643140,-242.707001,0.00035,2]
[322650208,1713174643149,-242.707001,0.00035,2]
[322650209,1713174643158,-309.287722,0.00035,2]
[322650210,1713174643167,-309.287722,0.00035,2]
[322650211,1713174643176,-251.087682,0.00035,2]
[322650212,1713174643186,-774.153459,0.00035,2]
[322650213,1713174643196,-774.153459,0.00035,2]
[322650214,1713174643208,-590.638728,0.00035,2]
[322650215,1713174643218,-590.638728,0.00035,2]
[322650216,1713174643228,-151.0,0.00035,2]
[322650217,1713174643237,-153.0,0.00035068,2]
[322650218,1713174643246,-202.9164481,0.00035068,2]
[322650219,1713174643255,-153.0,0.00035068,2]
[322650220,1713174643264,-309.169914,0.00035068,2]
[322650221,1713174643276,-153.0,0.00035068,2]
[322650222,1713174643285,-308.3478225,0.00035068,2]
[322650223,1713174643294,-153.0,0.00035068,2]
[322650224,1713174643303,-153.0,0.00035068,2]
[322650225,1713174643312,-153.0,0.00035068,2]
[322650226,1713174643321,-153.0,0.00035068,2]
[322650227,1713174643330,-153.0,0.00035068,2]
[322650228,1713174643339,-153.0,0.00035068,2]
[322650229,1713174643348,-425.0,0.00035338,2]
[322650230,1713174643358,-153.0,0.00035342,2]
[322650231,1713174643369,-153.0,0.00035342,2]
[322650232,1713174643378,-150.047,0.00035603,2]
[322650233,1713174643388,-218.8,0.00035603,2]
[322650234,1713174643397,-1972.015194,0.00035616,120]
[322650235,1713174643408,-153.0,0.0003589,2]
[322650236,1713174643417,-153.0,0.0003589,2]
[322650237,1713174643426,-20027.53612953,0.00036,30]
[322650238,1713174643441,-301.72137,0.00036,2]
[322650239,1713174643449,-151.0,0.00036,2]
[322650240,1713174643460,-272.816358,0.00036,2]
[322650241,1713174643470,-151.0,0.00036,2]
[322650242,1713174643480,-1060.573685,0.00036,2]
[322650243,1713174643489,-1060.573682,0.00036,2]
[322650244,1713174643498,-2402.040784,0.00036,2]
[322650245,1713174643508,-2402.040784,0.00036,2]
[322650246,1713174643517,-242.707001,0.00036,2]
[322650247,1713174643525,-242.706992,0.00036,2]
[322650248,1713174643534,-309.287722,0.00036,2]
[322650249,1713174643543,-309.287721,0.00036,2]
[322650250,1713174643552,-774.153459,0.00036,2]
[322650251,1713174643561,-774.15345,0.00036,2]
[322650252,1713174643570,-590.638728,0.00036,2]
[322650253,1713174643579,-590.638736,0.00036,2]
[322650254,1713174643588,-151.0,0.00036,2]
[322650255,1713174643597,-1242.51023388,0.00036064,4]
[322650256,1713174643606,-620.00013566,0.00036229,2]
[322650257,1713174643614,-174.0,0.00036247,2]
[322650258,1713174643623,-472.75762722,0.00036415,7]
[322650259,1713174643632,-10000.0,0.000365,20]
[322650260,1713174643641,-405.81273,0.00036538,2]
[322650261,1713174643650,-1000.0,0.000368,3]
[322650262,1713174643659,-1000.0,0.000368,3]
[322650263,1713174643669,-2046.20344708,0.00037,2]
[322650264,1713174643678,-10549.08217662,0.00037,2]
[322650265,1713174643687,-1440.0,0.00037,120]
[322650266,1713174643696,-151.0,0.00037,2]
[322650267,1713174643705,-151.0,0.00037,2]
[322650268,1713174643714,-1099.6613126,0.0003707,31]
[322650270,1713174643724,-150.75878594,0.00037193,2]
[322650272,1713174643733,-2050.0,0.0003722,4]
[322650274,1713174643742,-120000.0,0.000375,2]
[322650275,1713174643752,-7827.51082,0.000375,2]
[322650276,1713174643761,-3000.0,0.000375,4]
[322650277,1713174643770,-3000.0,0.000375,14]
[322650278,1713174643779,-3000.0,0.0003751,14]
[322650279,1713174643788,-3000.0,0.0003752,14]
[322650280,1713174643798,-3000.0,0.0003753,14]
[322650281,1713174643807,-3000.0,0.0003754,14]
[322650282,1713174643816,-151.0,0.0003755,2]
[322650283,1713174643826,-3000.0,0.0003755,14]
[322650284,1713174643836,-151.0,0.0003755,2]
[322650285,1713174643845,-3000.0,0.0003756,14]
[322650286,1713174643854,-3000.0,0.0003757,14]
[322650287,1713174643863,-3000.0,0.0003758,14]
[322650288,1713174643872,-3000.0,0.0003759,14]
[322650289,1713174643882,-3000.0,0.000376,4]
[322650290,1713174643891,-3000.0,0.000376,14]
[322650291,1713174643900,-3000.0,0.0003761,14]
[322650292,1713174643909,-3000.0,0.0003762,14]
[322650293,1713174643919,-3000.0,0.0003763,14]
[322650294,1713174643928,-151.0,0.0003764,2]
[322650295,1713174643938,-3000.0,0.0003764,14]
[322650296,1713174643948,-151.0,0.0003764,2]
[322650297,1713174643957,-3000.0,0.0003765,15]
[322650298,1713174643967,-3000.0,0.0003766,15]
[322650299,1713174643978,-3000.0,0.0003767,15]
[322650300,1713174643988,-5114.082579,0.0003768,15]
[322650301,1713174643997,-3000.0,0.000377,4]
[322650302,1713174644007,-3000.0,0.0003771,4]
[322650303,1713174644018,-234.92448419,0.0003777,2]
[322650304,1713174644027,-3000.0,0.000378,4]
[322650305,1713174644036,-4000.0,0.0003781,4]
[322650306,1713174644045,-301.51757188,0.00037818,4]
[322650307,1713174644054,-1613.0,0.00037849,2]
[322650308,1713174644064,-3000.0,0.0003785,4]
[322650309,1713174644073,-151.0,0.0003785,2]
[322650310,1713174644082,-151.0,0.0003785,2]
[322650311,1713174644092,-9394.86542554,0.00037939,7]
[322650312,1713174644101,-150.5,0.0003797,35]
[322650314,1713174644111,-212.0,0.0003797,35]
[322650315,1713174644121,-291.0,0.0003797,35]
[322650317,1713174644130,-3000.0,0.0003798,4]
[322650319,1713174644139,-150.5,0.0003798,35]
[322650321,1713174644149,-212.0,0.0003798,35]
[322650323,1713174644159,-291.0,0.0003798,35]
[322650324,1713174644168,-150.5,0.0003799,35]
[322650325,1713174644177,-212.0,0.0003799,35]
[322650326,1713174644186,-291.0,0.0003799,35]
[322650327,1713174644195,-160.67365099,0.00037999,10]
[322650328,1713174644206,-500.51197614,0.00038,10]
[322650329,1713174644216,-1053.35590445,0.00038,5]
[322650330,1713174644226,-252.08101149,0.00038,7]
[322650331,1713174644235,-3000.0,0.00038,2]
[322650332,1713174644244,-2447.0,0.00038,2]
[322650334,1713174644255,-1394787.86299966,0.00038,30]
[322650335,1713174644264,-620.00000678,0.0003804,2]
[322650336,1713174644273,-2000.0,0.0003805,4]
[322650337,1713174644284,-3000.0,0.0003806,4]
[322650338,1713174644292,-3000.0,0.0003807,4]
[322650339,1713174644301,-3000.0,0.0003808,4]
[322650341,1713174644311,-3000.0,0.0003809,4]
[322650342,1713174644319,-2000.0,0.000381,4]
[322650343,1713174644328,-177.0,0.000383,14]
[322650344,1713174644338,-200.0,0.00038312,120]
[322650345,1713174644347,-173.0,0.00038325,35]
[322650346,1713174644361,-3982.0,0.00038325,35]
[322650347,1713174644373,-150.5,0.00038326,35]
[322650348,1713174644383,-150.5,0.0003833,35]
[322650349,1713174644393,-173.0,0.00038335,35]
[322650350,1713174644402,-3982.0,0.00038335,35]
[322650351,1713174644411,-150.5,0.00038336,35]
[322650352,1713174644421,-173.0,0.00038345,35]
[322650353,1713174644431,-3982.0,0.00038345,35]
[322650354,1713174644441,-150.5,0.00038346,35]
[322650355,1713174644455,-211.69584009,0.0003835,4]
[322650356,1713174644464,-71898.59580799,0.00038351,2]
[322650357,1713174644475,-291.49043287,0.00038355,7]
[322650358,1713174644485,-500.0,0.00038356,7]
[322650359,1713174644493,-504.88526204,0.00038356,7]
[322650360,1713174644503,-500.0,0.00038356,7]
[322650361,1713174644512,-250.26670652,0.00038356,7]
[322650362,1713174644521,-504.95218485,0.00038356,7]
[322650363,1713174644530,-500.0,0.00038356,7]
[322650364,1713174644539,-500.0,0.00038356,7]
[322650365,1713174644549,-501.25342993,0.00038356,7]
[322650366,1713174644558,-221.76148875,0.00038356,7]
[322650367,1713174644567,-165.75813534,0.00038356,7]
[322650368,1713174644577,-500.0,0.00038356,7]